[Event "*** SCC Grand Prix: Titled Tuesday Blitz"]
[Site "Chess.com"]
[Date "2020.07.14"]
[Round "3"]
[White "Witik"]
[Black "PSvidler"]
[Result "0-1"]
[WhiteElo "2671"]
[BlackElo "2981"]
[TimeControl "180+1"]
[EndTime "10:28:34 PDT"]
[Termination "PSvidler won on time"]

1. e4 {[%clk 0:02:57.5]} 1... c5 {[%clk 0:02:57.2]} 2. Nf3 {[%clk 0:02:57.3]}
2... e6 {[%clk 0:02:55.3]} 3. d4 {[%clk 0:02:56.3]} 3... cxd4 {[%clk 0:02:55.2]}
4. Nxd4 {[%clk 0:02:57.2]} 4... a6 {[%clk 0:02:54.2]} 5. c4 {[%clk 0:02:57.2]}
5... Nf6 {[%clk 0:02:49.6]} 6. Nc3 {[%clk 0:02:57.3]} 6... Qc7 {[%clk
0:02:49.6]} 7. a3 {[%clk 0:02:57.2]} 7... Nxe4 {[%clk 0:02:49.4]} 8. Nxe4 {[%clk
0:02:52.6]} 8... Qe5 {[%clk 0:02:49.5]} 9. Be2 {[%clk 0:02:30.3]} 9... Qxe4
{[%clk 0:02:47.6]} 10. O-O {[%clk 0:02:30.2]} 10... Nc6 {[%clk 0:02:40.6]} 11.
Be3 {[%clk 0:02:24.6]} 11... Be7 {[%clk 0:02:35.9]} 12. c5 {[%clk 0:01:53.6]}
12... O-O {[%clk 0:02:24]} 13. Rc1 {[%clk 0:01:51.7]} 13... Bf6 {[%clk
0:02:05.1]} 14. Bf3 {[%clk 0:01:34.7]} 14... Qe5 {[%clk 0:01:59.7]} 15. Nxc6
{[%clk 0:01:21.6]} 15... dxc6 {[%clk 0:01:52.2]} 16. b4 {[%clk 0:01:19.2]} 16...
a5 {[%clk 0:01:52.5]} 17. Rc4 {[%clk 0:01:12.2]} 17... Rd8 {[%clk 0:01:47.8]}
18. Qc2 {[%clk 0:01:12.2]} 18... axb4 {[%clk 0:01:45.5]} 19. axb4 {[%clk
0:01:11.9]} 19... Ra1 {[%clk 0:01:42.4]} 20. g3 {[%clk 0:01:08.2]} 20... Rxf1+
{[%clk 0:01:39.2]} 21. Kxf1 {[%clk 0:01:08.6]} 21... Qa1+ {[%clk 0:01:39.9]} 22.
Kg2 {[%clk 0:01:08.7]} 22... e5 {[%clk 0:01:38.9]} 23. Bg4 {[%clk 0:00:44.9]}
23... Bxg4 {[%clk 0:01:35.7]} 24. Rxg4 {[%clk 0:00:44.7]} 24... h5 {[%clk
0:01:30.1]} 25. Rc4 {[%clk 0:00:41.8]} 25... g6 {[%clk 0:01:23.5]} 26. b5 {[%clk
0:00:31.7]} 26... cxb5 {[%clk 0:01:23]} 27. Rb4 {[%clk 0:00:31.8]} 27... Qa6
{[%clk 0:01:21.4]} 28. Qb3 {[%clk 0:00:29.8]} 28... Qc6+ {[%clk 0:01:20.7]} 29.
f3 {[%clk 0:00:23]} 29... e4 {[%clk 0:00:43.8]} 30. Rxe4 {[%clk 0:00:21.7]}
30... Re8 {[%clk 0:00:42.9]} 31. Rxe8+ {[%clk 0:00:18.1]} 31... Qxe8 {[%clk
0:00:42.7]} 32. Bf2 {[%clk 0:00:18.8]} 32... Qc6 {[%clk 0:00:42.4]} 33. h4
{[%clk 0:00:17.9]} 33... Be7 {[%clk 0:00:42.3]} 34. Qe3 {[%clk 0:00:16.2]} 34...
Bf8 {[%clk 0:00:42.1]} 35. Qd4 {[%clk 0:00:16.1]} 35... Qe6 {[%clk 0:00:40]} 36.
Qd8 {[%clk 0:00:15.5]} 36... b4 {[%clk 0:00:37.9]} 37. Qb8 {[%clk 0:00:04.6]}
37... Qd5 {[%clk 0:00:36.3]} 38. Qe8 {[%clk 0:00:02.3]} 38... b3 {[%clk
0:00:35.8]} 0-1

[Event "*** SCC Grand Prix: Titled Tuesday Blitz"]
[Site "Chess.com"]
[Date "2020.07.14"]
[Round "3"]
[White "elamier"]
[Black "tamarozi99"]
[Result "0-1"]
[WhiteElo "2307"]
[BlackElo "2021"]
[TimeControl "180+1"]
[EndTime "10:28:34 PDT"]
[Termination "tamarozi99 won by resignation"]

1. d4 {[%clk 0:03:00.9]} 1... Nf6 {[%clk 0:02:59.2]} 2. Bg5 {[%clk 0:02:59.8]}
2... g6 {[%clk 0:02:53.5]} 3. Bxf6 {[%clk 0:02:59.6]} 3... exf6 {[%clk
0:02:54.4]} 4. e3 {[%clk 0:02:59.8]} 4... Bg7 {[%clk 0:02:54.6]} 5. c4 {[%clk
0:02:58.4]} 5... f5 {[%clk 0:02:54.1]} 6. Nc3 {[%clk 0:02:59]} 6... O-O {[%clk
0:02:36.9]} 7. Bd3 {[%clk 0:02:58]} 7... f4 {[%clk 0:02:34.2]} 8. exf4 {[%clk
0:02:48.5]} 8... Bxd4 {[%clk 0:02:24.5]} 9. Nge2 {[%clk 0:02:47.9]} 9... Bg7
{[%clk 0:02:18.2]} 10. O-O {[%clk 0:02:47.1]} 10... d6 {[%clk 0:02:18]} 11. Ng3
{[%clk 0:02:36.3]} 11... f5 {[%clk 0:02:09.5]} 12. Qd2 {[%clk 0:02:31.9]} 12...
Be6 {[%clk 0:02:04.4]} 13. Rfe1 {[%clk 0:02:30.2]} 13... Bf7 {[%clk 0:02:02.5]}
14. Rad1 {[%clk 0:02:23.5]} 14... Nc6 {[%clk 0:02:02.4]} 15. b3 {[%clk
0:02:21.9]} 15... Nd4 {[%clk 0:01:52]} 16. Nge2 {[%clk 0:02:19.6]} 16... Ne6
{[%clk 0:01:44.9]} 17. Bb1 {[%clk 0:02:12.4]} 17... Re8 {[%clk 0:01:36.6]} 18.
Nd5 {[%clk 0:02:07.3]} 18... Nc5 {[%clk 0:01:26.2]} 19. Ng3 {[%clk 0:02:01.3]}
19... Qd7 {[%clk 0:01:18.4]} 20. b4 {[%clk 0:01:51.5]} 20... Ne6 {[%clk
0:01:01.2]} 21. h4 {[%clk 0:01:40.2]} 21... c6 {[%clk 0:00:55.1]} 22. Nc3 {[%clk
0:01:38.5]} 22... Rad8 {[%clk 0:00:55.2]} 23. h5 {[%clk 0:01:36.4]} 23... Nxf4
{[%clk 0:00:42.6]} 24. Rxe8+ {[%clk 0:01:22]} 24... Qxe8 {[%clk 0:00:34.4]} 25.
Qxf4 {[%clk 0:01:20.7]} 25... Bxc3 {[%clk 0:00:34.4]} 26. Rxd6 {[%clk
0:01:15.1]} 26... Rxd6 {[%clk 0:00:28.8]} 27. Qxd6 {[%clk 0:01:14.5]} 27... Qe1+
{[%clk 0:00:28.4]} 28. Kh2 {[%clk 0:01:14]} 28... Qxb1 {[%clk 0:00:26.6]} 29. h6
{[%clk 0:01:12.4]} 29... Qe1 {[%clk 0:00:14.6]} 30. Qb8+ {[%clk 0:01:06]} 30...
Qe8 {[%clk 0:00:14.2]} 31. Qxb7 {[%clk 0:01:06.1]} 31... Be5 {[%clk 0:00:14.1]}
32. Qxa7 {[%clk 0:01:02.1]} 32... f4 {[%clk 0:00:12.9]} 33. Ne4 {[%clk
0:01:00.7]} 33... f3+ {[%clk 0:00:13]} 34. g3 {[%clk 0:01:01]} 34... Bb8 {[%clk
0:00:11.1]} 35. Nf6+ {[%clk 0:00:55.5]} 35... Kh8 {[%clk 0:00:11.3]} 36. Qd4
{[%clk 0:00:51]} 36... Be5 {[%clk 0:00:09.7]} 37. Qh4 {[%clk 0:00:50]} 37... Qd8
{[%clk 0:00:07.5]} 38. Ng4 {[%clk 0:00:38]} 38... Qxh4+ {[%clk 0:00:07.4]} 0-1

[Event "*** SCC Grand Prix: Titled Tuesday Blitz"]
[Site "Chess.com"]
[Date "2020.07.14"]
[Round "3"]
[White "MITerryble"]
[Black "Tonychess32"]
[Result "0-1"]
[WhiteElo "2796"]
[BlackElo "2616"]
[TimeControl "180+1"]
[EndTime "10:28:35 PDT"]
[Termination "Tonychess32 won on time"]

1. d4 {[%clk 0:03:00.9]} 1... Nf6 {[%clk 0:02:59.4]} 2. Nf3 {[%clk 0:03:01.2]}
2... e6 {[%clk 0:02:59.5]} 3. c4 {[%clk 0:03:01.3]} 3... d5 {[%clk 0:02:59.6]}
4. e3 {[%clk 0:03:01.4]} 4... c6 {[%clk 0:03:00]} 5. b3 {[%clk 0:03:01.6]} 5...
Nbd7 {[%clk 0:03:00]} 6. Bd3 {[%clk 0:03:02.1]} 6... Bd6 {[%clk 0:02:59.1]} 7.
Bb2 {[%clk 0:03:01.4]} 7... O-O {[%clk 0:02:59.1]} 8. O-O {[%clk 0:03:01.4]}
8... b6 {[%clk 0:02:56.6]} 9. Nbd2 {[%clk 0:02:57.6]} 9... Bb7 {[%clk
0:02:56.7]} 10. Qe2 {[%clk 0:02:57.6]} 10... Re8 {[%clk 0:02:54.2]} 11. Ne5
{[%clk 0:02:55]} 11... c5 {[%clk 0:02:53.4]} 12. Rfd1 {[%clk 0:02:54.2]} 12...
Rc8 {[%clk 0:02:46.5]} 13. cxd5 {[%clk 0:02:53.9]} 13... exd5 {[%clk 0:02:46.4]}
14. f4 {[%clk 0:02:53.5]} 14... cxd4 {[%clk 0:02:43.4]} 15. exd4 {[%clk
0:02:54.4]} 15... Nf8 {[%clk 0:02:33.9]} 16. Rac1 {[%clk 0:02:48.2]} 16... Qe7
{[%clk 0:02:30.1]} 17. Bf5 {[%clk 0:02:02.9]} 17... Rxc1 {[%clk 0:02:26.4]} 18.
Rxc1 {[%clk 0:02:03.8]} 18... Ne6 {[%clk 0:02:21.5]} 19. g3 {[%clk 0:02:02]}
19... g6 {[%clk 0:02:21.9]} 20. Bh3 {[%clk 0:01:58.6]} 20... Rc8 {[%clk
0:02:04.5]} 21. Rxc8+ {[%clk 0:01:53.7]} 21... Bxc8 {[%clk 0:02:05.4]} 22. Bg2
{[%clk 0:01:50.3]} 22... Bb7 {[%clk 0:01:57.7]} 23. Qd3 {[%clk 0:01:31.6]} 23...
Qc7 {[%clk 0:01:53.7]} 24. Bf3 {[%clk 0:01:17.4]} 24... Ng7 {[%clk 0:01:50.9]}
25. Qc3 {[%clk 0:01:08.9]} 25... Qd8 {[%clk 0:01:41.8]} 26. Qc2 {[%clk
0:01:04.4]} 26... Nf5 {[%clk 0:01:39.7]} 27. Nf1 {[%clk 0:01:04.6]} 27... Qe7
{[%clk 0:01:32.6]} 28. a4 {[%clk 0:00:43.7]} 28... h5 {[%clk 0:01:31.6]} 29. Qe2
{[%clk 0:00:38.9]} 29... Ne4 {[%clk 0:01:21.5]} 30. Nd2 {[%clk 0:00:38.5]} 30...
Kg7 {[%clk 0:01:09.3]} 31. Nxe4 {[%clk 0:00:31.8]} 31... dxe4 {[%clk 0:01:07.7]}
32. Bg2 {[%clk 0:00:17]} 32... f6 {[%clk 0:01:05.3]} 33. Nc4 {[%clk 0:00:16.9]}
33... Bb4 {[%clk 0:01:05.4]} 34. Bh3 {[%clk 0:00:12.1]} 34... e3 {[%clk
0:01:05]} 35. Bxf5 {[%clk 0:00:12]} 35... gxf5 {[%clk 0:01:05.2]} 36. Qxe3
{[%clk 0:00:11.6]} 36... Qd7 {[%clk 0:01:01.1]} 37. Kf1 {[%clk 0:00:07.9]} 37...
Qd5 {[%clk 0:01:00.7]} 38. Ke2 {[%clk 0:00:08]} 38... Qg2+ {[%clk 0:00:58.1]}
39. Qf2 {[%clk 0:00:08.3]} 39... Qe4+ {[%clk 0:00:53.3]} 40. Ne3 {[%clk
0:00:08.2]} 40... Ba6+ {[%clk 0:00:51.2]} 41. Kd1 {[%clk 0:00:06.1]} 41... Qd3+
{[%clk 0:00:48.4]} 42. Kc1 {[%clk 0:00:05.8]} 42... Bb7 {[%clk 0:00:45.5]} 43.
d5 {[%clk 0:00:04]} 43... Bc5 {[%clk 0:00:44.7]} 0-1

[Event "*** SCC Grand Prix: Titled Tuesday Blitz"]
[Site "Chess.com"]
[Date "2020.07.14"]
[Round "3"]
[White "Unknown_IM"]
[Black "Skatchkov_V"]
[Result "0-1"]
[WhiteElo "2378"]
[BlackElo "2569"]
[TimeControl "180+1"]
[EndTime "10:28:35 PDT"]
[Termination "Skatchkov_V won by resignation"]

1. e4 {[%clk 0:03:00.9]} 1... e5 {[%clk 0:02:58.8]} 2. Nf3 {[%clk 0:03:00.6]}
2... Nf6 {[%clk 0:02:59.3]} 3. Nxe5 {[%clk 0:02:59.1]} 3... d6 {[%clk
0:02:59.4]} 4. Nf3 {[%clk 0:02:59.5]} 4... Nxe4 {[%clk 0:02:59.8]} 5. Nc3 {[%clk
0:02:58.9]} 5... Nxc3 {[%clk 0:03:00]} 6. dxc3 {[%clk 0:02:58.8]} 6... Be7
{[%clk 0:03:00.7]} 7. b3 {[%clk 0:02:57.3]} 7... Nc6 {[%clk 0:02:55.8]} 8. Bb2
{[%clk 0:02:57.7]} 8... Be6 {[%clk 0:02:56.3]} 9. Bd3 {[%clk 0:02:58.2]} 9...
Qd7 {[%clk 0:02:56.3]} 10. Qd2 {[%clk 0:02:58.6]} 10... O-O-O {[%clk 0:02:56.6]}
11. O-O-O {[%clk 0:02:58.9]} 11... h6 {[%clk 0:02:53.2]} 12. Kb1 {[%clk
0:02:55.9]} 12... Rhe8 {[%clk 0:02:53.3]} 13. Rhe1 {[%clk 0:02:55]} 13... Bf6
{[%clk 0:02:53.6]} 14. Nd4 {[%clk 0:02:51.5]} 14... Nxd4 {[%clk 0:02:36.1]} 15.
cxd4 {[%clk 0:02:52.4]} 15... Bf5 {[%clk 0:02:37]} 16. d5 {[%clk 0:02:37.2]}
16... Bxb2 {[%clk 0:02:16.4]} 17. Kxb2 {[%clk 0:02:36.2]} 17... Bxd3 {[%clk
0:02:15.2]} 18. Qxd3 {[%clk 0:02:37.1]} 18... Qg4 {[%clk 0:02:15.9]} 19. g3
{[%clk 0:02:33.9]} 19... Qg5 {[%clk 0:01:53.5]} 20. f4 {[%clk 0:02:31.9]} 20...
Qf6+ {[%clk 0:01:53.8]} 21. Qc3 {[%clk 0:02:31]} 21... Qxc3+ {[%clk 0:01:45]}
22. Kxc3 {[%clk 0:02:30.6]} 22... Kd7 {[%clk 0:01:45.9]} 23. Kd4 {[%clk
0:02:15.2]} 23... c5+ {[%clk 0:01:23.1]} 24. dxc6+ {[%clk 0:02:11]} 24... bxc6
{[%clk 0:01:24]} 25. c4 {[%clk 0:02:11.1]} 25... f5 {[%clk 0:01:20.1]} 26. c5
{[%clk 0:01:49.7]} 26... d5 {[%clk 0:01:10.4]} 27. Re5 {[%clk 0:01:40.1]} 27...
Rb8 {[%clk 0:01:10.5]} 28. Rde1 {[%clk 0:01:36]} 28... Rxe5 {[%clk 0:01:04.8]}
29. Rxe5 {[%clk 0:01:35.5]} 29... g6 {[%clk 0:01:02.2]} 30. Re3 {[%clk
0:01:31.9]} 30... Rb4+ {[%clk 0:00:57.6]} 31. Ke5 {[%clk 0:01:11.1]} 31... Re4+
{[%clk 0:00:58.5]} 32. Rxe4 {[%clk 0:01:11.2]} 32... dxe4 {[%clk 0:00:59.4]} 33.
Kd4 {[%clk 0:01:11.3]} 33... Kc7 {[%clk 0:01:00.3]} 34. b4 {[%clk 0:01:08.2]}
34... h5 {[%clk 0:00:59.9]} 35. h4 {[%clk 0:01:07.5]} 35... a5 {[%clk
0:00:57.5]} 36. a3 {[%clk 0:00:55.3]} 36... axb4 {[%clk 0:00:57.5]} 37. axb4
{[%clk 0:00:55]} 37... Kb7 {[%clk 0:00:58.1]} 38. Kc4 {[%clk 0:00:42.5]} 38...
Ka6 {[%clk 0:00:57.8]} 39. b5+ {[%clk 0:00:20.3]} 39... cxb5+ {[%clk 0:00:58.5]}
40. Kb4 {[%clk 0:00:15.3]} 40... Kb7 {[%clk 0:00:55.9]} 41. Kxb5 {[%clk
0:00:14.9]} 41... e3 {[%clk 0:00:56.2]} 42. c6+ {[%clk 0:00:15.8]} 42... Kc7
{[%clk 0:00:56.6]} 43. Kc5 {[%clk 0:00:16.7]} 43... e2 {[%clk 0:00:57.2]} 44.
Kd5 {[%clk 0:00:17.6]} 44... e1=Q {[%clk 0:00:57.8]} 0-1

[Event "*** SCC Grand Prix: Titled Tuesday Blitz"]
[Site "Chess.com"]
[Date "2020.07.14"]
[Round "3"]
[White "Bazarov04"]
[Black "dretch"]
[Result "0-1"]
[WhiteElo "2595"]
[BlackElo "2812"]
[TimeControl "180+1"]
[EndTime "10:28:36 PDT"]
[Termination "dretch won by resignation"]

1. d4 {[%clk 0:03:00]} 1... d5 {[%clk 0:02:54.5]} 2. Nf3 {[%clk 0:03:00.1]} 2...
Nf6 {[%clk 0:02:54.6]} 3. g3 {[%clk 0:03:00.5]} 3... Bf5 {[%clk 0:02:53.4]} 4.
Bg2 {[%clk 0:03:00.3]} 4... e6 {[%clk 0:02:52.3]} 5. O-O {[%clk 0:03:00.5]} 5...
Nbd7 {[%clk 0:02:48.5]} 6. b3 {[%clk 0:03:00.3]} 6... Bd6 {[%clk 0:02:45.3]} 7.
Bb2 {[%clk 0:03:00]} 7... c6 {[%clk 0:02:42.4]} 8. c4 {[%clk 0:02:54.3]} 8...
O-O {[%clk 0:02:41.2]} 9. Nbd2 {[%clk 0:02:54.2]} 9... h6 {[%clk 0:02:40.6]} 10.
a3 {[%clk 0:02:54]} 10... a5 {[%clk 0:02:37.4]} 11. Ne5 {[%clk 0:02:52.5]} 11...
Qc7 {[%clk 0:02:32.9]} 12. Ndf3 {[%clk 0:02:52.1]} 12... Be4 {[%clk 0:02:29.9]}
13. Rc1 {[%clk 0:02:44.6]} 13... Rfd8 {[%clk 0:02:21.6]} 14. Nd3 {[%clk
0:02:25.1]} 14... b6 {[%clk 0:02:04.6]} 15. Qd2 {[%clk 0:02:24.4]} 15... Qb7
{[%clk 0:01:48.5]} 16. Rfd1 {[%clk 0:02:23.7]} 16... Qa6 {[%clk 0:01:33.5]} 17.
cxd5 {[%clk 0:01:47.6]} 17... Bxd5 {[%clk 0:01:28.8]} 18. Nfe5 {[%clk
0:01:47.5]} 18... Bxg2 {[%clk 0:01:15.5]} 19. Kxg2 {[%clk 0:01:48.4]} 19... Bxe5
{[%clk 0:01:08.3]} 20. dxe5 {[%clk 0:01:44.9]} 20... Nd5 {[%clk 0:01:08.2]} 21.
e4 {[%clk 0:00:56.3]} 21... Ne7 {[%clk 0:01:07.6]} 22. Qf4 {[%clk 0:00:29.9]}
22... Qb5 {[%clk 0:00:54.2]} 23. b4 {[%clk 0:00:09.7]} 23... axb4 {[%clk
0:00:51.1]} 24. axb4 {[%clk 0:00:09.5]} 24... c5 {[%clk 0:00:27.7]} 25. Qe3
{[%clk 0:00:07.1]} 25... c4 {[%clk 0:00:26.2]} 26. Nf4 {[%clk 0:00:07.1]} 26...
Nc6 {[%clk 0:00:19.2]} 27. Rd6 {[%clk 0:00:06.3]} 27... Ndxe5 {[%clk 0:00:17.3]}
28. Rcd1 {[%clk 0:00:05.6]} 28... Nd3 {[%clk 0:00:15.7]} 29. Rxd8+ {[%clk
0:00:05.1]} 29... Rxd8 {[%clk 0:00:15.8]} 30. g4 {[%clk 0:00:03.9]} 30... Nxf4+
{[%clk 0:00:12.6]} 31. Qxf4 {[%clk 0:00:04.8]} 31... Rxd1 {[%clk 0:00:12.6]} 0-1

[Event "*** SCC Grand Prix: Titled Tuesday Blitz"]
[Site "Chess.com"]
[Date "2020.07.14"]
[Round "3"]
[White "Zkid"]
[Black "deribas12345"]
[Result "0-1"]
[WhiteElo "2761"]
[BlackElo "2598"]
[TimeControl "180+1"]
[EndTime "10:28:36 PDT"]
[Termination "deribas12345 won by resignation"]

1. e4 {[%clk 0:03:00.9]} 1... e6 {[%clk 0:02:54.4]} 2. d4 {[%clk 0:02:59.7]}
2... d5 {[%clk 0:02:55]} 3. Nc3 {[%clk 0:02:59.8]} 3... Nf6 {[%clk 0:02:54.7]}
4. e5 {[%clk 0:02:59.5]} 4... Ne4 {[%clk 0:02:54.4]} 5. Nce2 {[%clk 0:02:57.8]}
5... f6 {[%clk 0:02:53.9]} 6. f3 {[%clk 0:02:53.9]} 6... Ng5 {[%clk 0:02:53.6]}
7. f4 {[%clk 0:02:22.5]} 7... Ne4 {[%clk 0:02:49.6]} 8. Nf3 {[%clk 0:02:17]}
8... c5 {[%clk 0:02:44.8]} 9. g3 {[%clk 0:02:11.1]} 9... Nc6 {[%clk 0:02:37.7]}
10. Bg2 {[%clk 0:02:01.8]} 10... Qb6 {[%clk 0:02:35]} 11. exf6 {[%clk
0:01:38.9]} 11... gxf6 {[%clk 0:02:32.3]} 12. Be3 {[%clk 0:01:27.3]} 12... Qxb2
{[%clk 0:02:28.8]} 13. O-O {[%clk 0:01:26.4]} 13... Qa3 {[%clk 0:02:26.9]} 14.
Qd3 {[%clk 0:01:15.6]} 14... c4 {[%clk 0:02:20.5]} 15. Qxa3 {[%clk 0:01:13.7]}
15... Bxa3 {[%clk 0:02:21.4]} 16. f5 {[%clk 0:01:11]} 16... e5 {[%clk
0:02:02.8]} 17. dxe5 {[%clk 0:00:59.5]} 17... fxe5 {[%clk 0:02:01.7]} 18. Ng5
{[%clk 0:00:55.4]} 18... Nxg5 {[%clk 0:01:45.3]} 19. Bxg5 {[%clk 0:00:56.3]}
19... d4 {[%clk 0:01:42.5]} 20. Bf6 {[%clk 0:00:49.2]} 20... Rf8 {[%clk
0:01:36.2]} 21. Bxc6+ {[%clk 0:00:45.3]} 21... bxc6 {[%clk 0:01:34.5]} 22. Bxe5
{[%clk 0:00:45.6]} 22... c5 {[%clk 0:01:12.2]} 23. f6 {[%clk 0:00:39.2]} 23...
Kf7 {[%clk 0:01:07.9]} 24. Rab1 {[%clk 0:00:20.5]} 24... d3 {[%clk 0:01:07]} 25.
cxd3 {[%clk 0:00:18.2]} 25... cxd3 {[%clk 0:01:07.9]} 26. Nf4 {[%clk 0:00:17.5]}
26... c4 {[%clk 0:01:07.9]} 27. Rfc1 {[%clk 0:00:17.4]} 27... Ba6 {[%clk
0:00:50.6]} 28. Rc3 {[%clk 0:00:11.9]} 28... Bc5+ {[%clk 0:00:47]} 29. Kf1
{[%clk 0:00:12.5]} 29... Rfe8 {[%clk 0:00:42.4]} 30. Nxd3 {[%clk 0:00:11.2]}
30... Bf8 {[%clk 0:00:31.6]} 31. Nf2 {[%clk 0:00:04.1]} 31... Rxe5 {[%clk
0:00:30.9]} 32. Rf3 {[%clk 0:00:04.4]} 32... c3+ {[%clk 0:00:29.1]} 33. Kg1
{[%clk 0:00:04.3]} 33... c2 {[%clk 0:00:28.3]} 34. Rc1 {[%clk 0:00:04.7]} 34...
Rc8 {[%clk 0:00:28.3]} 35. Rb3 {[%clk 0:00:03.2]} 35... Bh6 {[%clk 0:00:25.3]}
36. Ng4 {[%clk 0:00:03.3]} 36... Bxc1 {[%clk 0:00:21.8]} 37. Nxe5+ {[%clk
0:00:03.6]} 37... Kxf6 {[%clk 0:00:22.3]} 0-1

[Event "*** SCC Grand Prix: Titled Tuesday Blitz"]
[Site "Chess.com"]
[Date "2020.07.14"]
[Round "3"]
[White "albi1999"]
[Black "JonahWillow"]
[Result "1-0"]
[WhiteElo "2482"]
[BlackElo "2704"]
[TimeControl "180+1"]
[EndTime "10:28:37 PDT"]
[Termination "albi1999 won by resignation"]

1. d4 {[%clk 0:03:00.9]} 1... Nf6 {[%clk 0:02:59.6]} 2. c4 {[%clk 0:03:00.5]}
2... e6 {[%clk 0:03:00.3]} 3. Nf3 {[%clk 0:03:00.7]} 3... c5 {[%clk 0:03:01]} 4.
d5 {[%clk 0:03:00.8]} 4... exd5 {[%clk 0:03:01.9]} 5. cxd5 {[%clk 0:03:01.7]}
5... d6 {[%clk 0:03:02.8]} 6. Nc3 {[%clk 0:03:02]} 6... g6 {[%clk 0:03:03]} 7.
h3 {[%clk 0:03:02.6]} 7... Bg7 {[%clk 0:03:03.5]} 8. e4 {[%clk 0:03:03.2]} 8...
O-O {[%clk 0:03:04.4]} 9. Bd3 {[%clk 0:03:03.8]} 9... b5 {[%clk 0:03:03.9]} 10.
Nxb5 {[%clk 0:03:03.5]} 10... Re8 {[%clk 0:02:59.6]} 11. O-O {[%clk 0:03:02.9]}
11... Nxe4 {[%clk 0:02:59.1]} 12. Re1 {[%clk 0:03:03.3]} 12... a6 {[%clk
0:02:44.5]} 13. Nc3 {[%clk 0:03:03.3]} 13... Nxc3 {[%clk 0:02:39.4]} 14. Rxe8+
{[%clk 0:03:03.4]} 14... Qxe8 {[%clk 0:02:39.6]} 15. bxc3 {[%clk 0:03:04.3]}
15... Bxc3 {[%clk 0:02:38.3]} 16. Rb1 {[%clk 0:03:04]} 16... Nd7 {[%clk
0:02:37.8]} 17. Qa4 {[%clk 0:03:03.3]} 17... Nf6 {[%clk 0:02:32.5]} 18. Qc4
{[%clk 0:02:43.9]} 18... Ba5 {[%clk 0:02:26.4]} 19. Bg5 {[%clk 0:02:39.3]} 19...
Nd7 {[%clk 0:02:16.4]} 20. Qa4 {[%clk 0:02:10.2]} 20... f6 {[%clk 0:02:05.3]}
21. Qxa5 {[%clk 0:01:50.4]} 21... fxg5 {[%clk 0:02:04.9]} 22. Qc7 {[%clk
0:01:44.8]} 22... Nf8 {[%clk 0:01:43]} 23. Qxd6 {[%clk 0:01:38.1]} 23... Bf5
{[%clk 0:01:42.1]} 24. Bxf5 {[%clk 0:01:35.4]} 24... gxf5 {[%clk 0:01:43]} 25.
Nxg5 {[%clk 0:01:19.9]} 25... Qg6 {[%clk 0:01:35.7]} 26. Ne6 {[%clk 0:01:12.2]}
26... Re8 {[%clk 0:01:22.8]} 27. Rb8 {[%clk 0:01:03.9]} 27... Nxe6 {[%clk
0:01:10.6]} 28. dxe6 {[%clk 0:01:01.6]} 28... c4 {[%clk 0:01:09.4]} 29. Rxe8+
{[%clk 0:00:39.9]} 29... Qxe8 {[%clk 0:01:10.3]} 30. Qg3+ {[%clk 0:00:22.7]}
30... Kf8 {[%clk 0:01:08.2]} 31. Qe5 {[%clk 0:00:19.8]} 31... Ke7 {[%clk
0:00:58.3]} 32. Qc5+ {[%clk 0:00:18.3]} 32... Kxe6 {[%clk 0:00:56.1]} 33. Qxc4+
{[%clk 0:00:19.2]} 33... Ke7 {[%clk 0:00:48.9]} 34. Qe2+ {[%clk 0:00:18.8]}
34... Kf8 {[%clk 0:00:46.9]} 35. Qxe8+ {[%clk 0:00:19.7]} 35... Kxe8 {[%clk
0:00:47.8]} 36. Kf1 {[%clk 0:00:20.2]} 36... Ke7 {[%clk 0:00:43.1]} 37. Ke2
{[%clk 0:00:20.4]} 37... Ke6 {[%clk 0:00:41.1]} 38. Ke3 {[%clk 0:00:20.9]} 38...
Ke5 {[%clk 0:00:41.8]} 39. f4+ {[%clk 0:00:20.4]} 39... Kd5 {[%clk 0:00:40]} 40.
g4 {[%clk 0:00:21.3]} 40... Ke6 {[%clk 0:00:38.3]} 41. Kd4 {[%clk 0:00:19.4]}
41... h6 {[%clk 0:00:36.7]} 42. a4 {[%clk 0:00:18.4]} 42... Kf6 {[%clk
0:00:33.7]} 43. a5 {[%clk 0:00:17]} 43... Ke6 {[%clk 0:00:33.5]} 44. Kc5 {[%clk
0:00:16.8]} 1-0

[Event "*** SCC Grand Prix: Titled Tuesday Blitz"]
[Site "Chess.com"]
[Date "2020.07.14"]
[Round "3"]
[White "Niclox"]
[Black "Efremov_Vlad"]
[Result "1-0"]
[WhiteElo "2723"]
[BlackElo "2228"]
[TimeControl "180+1"]
[EndTime "10:28:37 PDT"]
[Termination "Niclox won by resignation"]

1. e4 {[%clk 0:03:00.9]} 1... c5 {[%clk 0:02:59.7]} 2. Nf3 {[%clk 0:03:00]} 2...
e6 {[%clk 0:02:59.7]} 3. b3 {[%clk 0:02:58.2]} 3... Nc6 {[%clk 0:02:58]} 4. Bb2
{[%clk 0:02:57.8]} 4... a6 {[%clk 0:02:58.7]} 5. g3 {[%clk 0:02:57.2]} 5... Nf6
{[%clk 0:02:52.5]} 6. e5 {[%clk 0:02:56]} 6... Ng4 {[%clk 0:02:52.3]} 7. h3
{[%clk 0:02:49.4]} 7... Nh6 {[%clk 0:02:51.7]} 8. Bg2 {[%clk 0:02:49.1]} 8...
Be7 {[%clk 0:02:46.2]} 9. O-O {[%clk 0:02:47.6]} 9... Nf5 {[%clk 0:02:43.1]} 10.
Nc3 {[%clk 0:02:31.6]} 10... O-O {[%clk 0:02:25.5]} 11. Re1 {[%clk 0:02:27.5]}
11... b6 {[%clk 0:02:16.8]} 12. Ne4 {[%clk 0:02:14.7]} 12... Bb7 {[%clk
0:02:06]} 13. c3 {[%clk 0:02:02.9]} 13... d5 {[%clk 0:02:05.1]} 14. exd6 {[%clk
0:02:02.6]} 14... Nxd6 {[%clk 0:02:04]} 15. Nxd6 {[%clk 0:01:59.8]} 15... Qxd6
{[%clk 0:01:59.4]} 16. d4 {[%clk 0:02:00.7]} 16... Rad8 {[%clk 0:01:43.4]} 17.
dxc5 {[%clk 0:01:47.3]} 17... Qxc5 {[%clk 0:01:42.8]} 18. Qe2 {[%clk 0:01:43.7]}
18... Bf6 {[%clk 0:01:39.7]} 19. c4 {[%clk 0:01:40]} 19... Bxb2 {[%clk
0:01:34.2]} 20. Qxb2 {[%clk 0:01:40.9]} 20... b5 {[%clk 0:01:05.9]} 21. cxb5
{[%clk 0:01:34.5]} 21... axb5 {[%clk 0:01:03.6]} 22. a4 {[%clk 0:01:29.5]} 22...
Nb4 {[%clk 0:00:55.9]} 23. Rec1 {[%clk 0:01:13.4]} 23... Qe7 {[%clk 0:00:21.5]}
24. Qe2 {[%clk 0:01:08.4]} 24... bxa4 {[%clk 0:00:18.3]} 25. bxa4 {[%clk
0:01:09.3]} 25... Bxf3 {[%clk 0:00:11.9]} 26. Qxf3 {[%clk 0:01:04.4]} 26... Qa7
{[%clk 0:00:11.8]} 27. Qb7 {[%clk 0:00:55.4]} 27... Qd4 {[%clk 0:00:09.8]} 28.
Rd1 {[%clk 0:00:44.7]} 28... Qxd1+ {[%clk 0:00:09.2]} 29. Rxd1 {[%clk
0:00:45.2]} 29... Rxd1+ {[%clk 0:00:10]} 30. Kh2 {[%clk 0:00:46]} 30... Nd3
{[%clk 0:00:10]} 31. Qb6 {[%clk 0:00:32.1]} 31... Rd2 {[%clk 0:00:09.5]} 32. Qe3
{[%clk 0:00:31.9]} 32... Rd1 {[%clk 0:00:09.4]} 33. Bf3 {[%clk 0:00:31.8]} 33...
Nb2 {[%clk 0:00:04.2]} 34. Bxd1 {[%clk 0:00:29.3]} 34... Nxd1 {[%clk 0:00:05.1]}
35. Qd4 {[%clk 0:00:29.3]} 35... Nxf2 {[%clk 0:00:02.6]} 1-0